bitfinex-derivatives/quotes_SOLF0:USTF0_20241120
["timestamp","ask_amount","ask_price","bid_price","bid_amount"]
[1732124466527,2.78,234.17,234.03,10.48193493]
[1732124467430,10.48193493,234.16,234.01,2.49]
[1732124467932,2.1333,234.1,234.06,2.1336]
[1732124468129,10.48193493,234.16,234.01,2.49]
[1732124468627,10.48193493,234.16,234.05,2.1337]
[1732124468833,10.48193493,234.13,234.01,2.49]
[1732124469527,10.48193493,234.13,234.04,2.1338]
[1732124469933,2.78,234.17,234.09,2.1334]
[1732124470532,2.78,234.17,234.03,10.48193493]
[1732124470726,10.48193493,234.19,234.06,10.48193493]
[1732124470931,2.78,234.2,234.06,10.48193493]
[1732124471125,10.48193493,234.19,234.03,10.48193493]
[1732124471936,2.133,234.14,234.03,10.48193493]
[1732124472335,2.1327,234.17,234.14,2.133]
[1732124472530,2.78,234.19,234.14,2.133]
[1732124472734,10.48193493,234.24,234.09,10.48193493]
[1732124472926,10.48193493,234.27,234.12,10.48193493]
[1732124473127,2.78,234.25,234.13,2.5424]
[1732124473434,2.132,234.25,234.19,2.1325]
[1732124473827,10.48193493,234.26,234.13,5.3224]
[1732124474027,2.1323,234.22,234.16,2.1328]
[1732124474232,10.48193493,234.26,234.13,2.5424]
[1732124474637,10.48193493,234.26,234.14,2.1329]
[1732124475337,10.48193493,234.26,234.15,2.1329]
[1732124475338,2.1324,234.2,234.15,2.1329]
[1732124475527,2.78,234.22,234.15,2.1329]
[1732124475731,2.1324,234.21,234.15,2.1329]
[1732124475938,2.78,234.22,234.15,2.1329]
[1732124476540,2.1324,234.21,234.15,2.1329]
[1732124476730,2.1324,234.21,234.16,2.1328]
[1732124477133,328.24667493,234.29,234.13,2.5424]
[1732124477436,2.78,234.28,234.13,2.5424]
[1732124477639,2.1322,234.23,234.13,2.5424]
[1732124477840,10.48193493,234.26,234.17,2.1327]
[1732124478034,10.48193493,234.26,234.13,2.5424]
[1732124478235,10.48193493,234.26,234.18,2.1326]
[1732124478636,10.48193493,234.26,234.13,2.5424]
[1732124478835,10.48193493,234.26,234.15,2.1328]
[1732124478836,2.1324,234.21,234.15,2.1328]
[1732124479141,2.1324,234.21,234.13,2.5424]
[1732124479643,2.1324,234.21,234.17,2.1327]
[1732124479936,2.1324,234.2,234.13,2.5424]
[1732124481031,10.48193493,234.26,234.13,2.5424]
[1732124481233,320.54474,234.29,234.18,10.48193493]
[1732124481542,10.48193493,234.26,234.01,5.85283793]
[1732124481838,10.48193493,234.26,234.11,1.2866]
[1732124482642,2.1325,234.2,234.15,2.1328]
[1732124482842,2.1325,234.2,234.12,1.3064]
[1732124483136,2.1326,234.18,234.13,2.133]
[1732124483344,2.1326,234.18,234.12,1.3064]
[1732124483738,10.48193493,234.2,234.06,10.48193493]
[1732124484438,317.76474,234.29,234.06,10.48193493]
[1732124484642,10.48193493,234.23,234.06,10.48193493]
[1732124485841,10.48193493,234.23,234.11,2.1332]
[1732124486039,2.76,234.22,234.11,2.1332]
[1732124486735,10.48193493,234.17,234.06,2.1337]
[1732124486939,10.48193493,234.17,234.03,13.00523493]
[1732124486940,2.76,234.16,234.03,13.00523493]
[1732124487142,2.133,234.14,234.06,2.1336]
[1732124487343,2.133,234.14,234.03,13.00523493]
[1732124487739,2.76,234.16,234.03,13.00523493]
[1732124487944,2.1332,234.12,234.03,13.00523493]
[1732124488745,2.1331,234.13,234.03,13.00523493]
[1732124489547,2.1332,234.12,234.08,2.1335]
[1732124489748,2.1332,234.12,234.03,13.00523493]
[1732124490140,2.1332,234.12,234.08,2.1335]
[1732124490345,2.1332,234.12,234.03,13.00523493]
[1732124490649,2.1332,234.12,234.08,2.1335]
[1732124492048,2.76,234.16,234.03,13.00523493]
[1732124492242,2.76,234.16,234.06,10.48193493]
[1732124492840,2.1329,234.15,234.06,10.48193493]
[1732124493042,2.76,234.16,234.06,10.48193493]
[1732124493250,2.1331,234.14,234.09,2.1334]
[1732124493845,2.1331,234.14,234.1,2.1333]
[1732124495747,2.1333,234.11,234.03,13.00523493]
[1732124496450,2.1333,234.11,234.08,2.1335]
[1732124496845,2.1331,234.12,234.08,2.1335]
[1732124497044,2.76,234.16,234.06,2.1336]
[1732124497646,2.1334,234.1,234.06,2.1336]
[1732124497851,2.76,234.16,234.06,2.1336]
[1732124498055,2.76,234.16,234.05,2.1337]
[1732124498252,2.1334,234.1,234.03,2.5233]
[1732124498446,2.76,234.16,234.03,2.5233]
[1732124498447,2.76,234.16,234.03,13.00523493]
[1732124499454,2.1331,234.13,234.03,13.00523493]
[1732124500752,2.1331,234.13,234.06,10.48193493]
[1732124501758,2.1331,234.13,234.09,2.1333]
[1732124502059,2.1331,234.13,234.06,10.48193493]
[1732124502350,2.76,234.16,234.09,2.1334]
[1732124502558,2.76,234.16,234.03,13.00523493]
[1732124503155,2.1333,234.11,234.03,13.00523493]
[1732124503357,2.76,234.16,234.03,13.00523493]
[1732124504060,2.1334,234.1,234.03,13.00523493]
[1732124504258,2.1334,234.1,234.03,2.5233]
[1732124504457,2.1334,234.1,234.07,2.1336]
[1732124504660,2.76,234.16,234.03,2.5233]
[1732124504959,2.1335,234.09,234.05,2.1337]
[1732124505164,2.1335,234.09,234.03,2.5233]
[1732124505656,2.1335,234.09,234.05,2.1337]
[1732124506463,13.24193493,234.16,234.0,10.48193493]
[1732124506662,2.1337,234.06,234.03,2.134]
[1732124506860,2.10596017,234.18,233.97,10.48193493]
[1732124506861,2.76,234.09,233.97,10.48193493]
[1732124507063,2.76,234.08,233.97,10.48193493]
[1732124507257,2.1339,234.04,233.96,2.5696]
[1732124507661,2.1342,234.01,233.97,2.1345]
[1732124508055,11.74263493,234.07,233.94,1.3284]
[1732124509057,10.48193493,234.04,233.88,10.48193493]
[1732124509261,10.48193493,234.04,233.91,10.48193493]
[1732124509459,11.74263493,234.07,233.91,10.48193493]
[1732124510166,11.74263493,234.07,233.97,2.1345]
[1732124510562,11.74263493,234.07,233.95,2.1346]
[1732124510755,11.74263493,234.07,233.91,10.48193493]
[1732124511360,11.74263493,234.07,233.96,2.1346]
[1732124511563,1.2607,234.07,233.91,10.48193493]
[1732124511765,10.48193493,234.05,233.89,13.24193493]
[1732124512061,2.1344,233.99,233.95,2.1347]
[1732124512860,2.1344,233.99,233.89,13.24193493]
[1732124512861,10.48193493,234.05,233.89,13.24193493]
[1732124513166,2.1344,233.99,233.89,13.24193493]
[1732124514262,10.48193493,233.99,233.81,23.41135174]
[1732124514456,10.48193493,233.99,233.84,13.07013493]
[1732124515357,10.48193493,233.99,233.9,2.1352]
[1732124515661,10.48193493,233.99,233.84,13.07013493]
[1732124515859,10.48193493,233.96,233.85,2.1355]
[1732124516068,2.76,233.95,233.84,2.5882]
[1732124516366,2.76,233.95,233.86,2.1355]
[1732124516962,2.1349,233.93,233.86,2.1355]
[1732124517162,2.76,233.95,233.86,2.1355]
[1732124517364,2.76,233.95,233.84,2.5882]
[1732124518157,2.135,233.92,233.88,2.1353]
[1732124518362,2.76,233.95,233.85,10.48193493]
[1732124519464,2.1348,233.94,233.85,10.48193493]
[1732124520463,2.1348,233.94,233.77,2.76]
[1732124520464,2.1354,233.88,233.77,2.76]
[1732124520776,2.76,233.95,233.78,10.48193493]
[1732124520968,2.1352,233.9,233.78,10.48193493]
[1732124521162,2.76,233.95,233.78,10.48193493]
[1732124521361,2.76,233.95,233.82,10.48193493]
[1732124521767,2.135,233.93,233.89,2.1352]
[1732124522065,2.76,233.95,233.82,10.48193493]
[1732124523164,4.8948,233.95,233.9,2.1351]
[1732124523575,2.1343,233.99,233.94,2.1347]
[1732124523967,2.76,234.01,233.88,10.48193493]
[1732124524170,2.1342,234.0,233.95,2.1346]
[1732124524371,2.76,234.01,233.95,2.1346]
[1732124524569,2.5262,234.06,233.89,2.76]
[1732124524773,2.5262,234.06,233.91,10.48193493]
[1732124525173,2.134,234.03,233.91,10.48193493]
[1732124525368,2.5262,234.06,233.91,10.48193493]
[1732124525768,2.134,234.04,233.91,10.48193493]
[1732124526370,2.134,234.04,233.94,2.1347]
[1732124526572,2.134,234.04,233.91,10.48193493]
[1732124526774,2.5262,234.06,233.91,10.48193493]
[1732124527072,2.5262,234.06,233.98,2.1344]
[1732124527371,2.5262,234.06,233.91,10.48193493]
[1732124527569,2.5262,234.06,233.97,2.1344]
[1732124527769,2.134,234.03,233.91,10.48193493]
[1732124528270,2.134,234.03,233.98,2.1344]
[1732124528675,2.5262,234.06,234.01,2.1341]
[1732124528870,2.5262,234.06,233.94,10.48193493]
[1732124529473,2.1339,234.04,233.94,10.48193493]
[1732124530374,2.1339,234.04,234.0,2.1342]
[1732124530575,2.76,234.08,233.95,2.76]
[1732124530770,2.76,234.08,233.95,3.9997]
[1732124531071,2.1336,234.07,233.95,3.9997]
[1732124531878,2.76,234.08,233.95,3.9997]
[1732124532369,4.8935,234.08,233.95,3.9997]
[1732124532673,3.8373,234.17,234.0,10.48193493]
[1732124532876,3.8373,234.17,234.04,10.48193493]
[1732124532877,2.76,234.16,234.04,10.48193493]
[1732124533177,10.48193493,234.2,234.04,10.48193493]
[1732124533368,10.48193493,234.2,234.13,2.133]
[1732124533568,10.48193493,234.2,234.05,2.5056]
[1732124533773,10.48193493,234.2,234.12,2.1331]
[1732124534066,10.48193493,234.2,234.07,10.48193493]
[1732124534265,1.3032,234.23,234.07,10.48193493]
[1732124534266,14.54513493,234.23,234.08,2.76]
[1732124534675,2.1325,234.19,234.08,2.76]
[1732124534875,14.54513493,234.23,234.13,2.133]
[1732124535278,2.1326,234.18,234.13,2.133]
[1732124535675,2.1326,234.18,234.14,2.133]
[1732124536571,14.54513493,234.23,234.08,2.76]
[1732124537371,2.1326,234.19,234.08,2.76]
[1732124537875,14.54513493,234.23,234.14,2.1329]
[1732124538178,2.1326,234.18,234.14,2.1329]
[1732124539479,14.54513493,234.23,234.03,2.76]
[1732124539681,10.48193493,234.2,234.02,10.48193493]
[1732124539979,10.48193493,234.2,234.05,10.48193493]
[1732124540279,2.1327,234.17,234.05,10.48193493]
[1732124540582,10.48193493,234.2,234.05,10.48193493]
[1732124540975,2.1329,234.16,234.09,2.1334]
[1732124541182,10.48193493,234.2,234.05,10.48193493]
[1732124541381,10.48193493,234.2,234.02,10.48193493]
[1732124541679,4.0632,234.23,234.05,10.48193493]
[1732124542077,4.0632,234.23,234.08,10.48193493]
[1732124542279,4.0632,234.23,234.08,13.24193493]
[1732124542982,4.0632,234.23,234.05,10.48193493]
[1732124543281,10.48193493,234.2,234.06,2.76]
[1732124543682,2.133,234.15,234.1,2.1333]
[1732124544283,2.1328,234.16,234.06,2.76]
[1732124544483,2.76,234.17,234.06,2.76]
[1732124544988,2.1328,234.16,234.11,2.1331]
[1732124545582,2.1328,234.16,234.06,2.76]
[1732124545778,2.1329,234.15,234.12,2.1331]
[1732124547780,2.1329,234.15,234.11,2.1332]
[1732124548186,13.24193493,234.17,234.02,10.48193493]
[1732124548386,10.48193493,234.14,234.0,2.76]
[1732124548585,2.5087,234.16,234.02,10.48193493]
[1732124549286,2.5087,234.16,234.06,2.1337]
[1732124550288,2.1334,234.1,234.06,2.1337]
[1732124550687,2.5087,234.16,234.07,2.1336]
[1732124550883,2.1332,234.12,234.02,10.48193493]
[1732124551093,2.5087,234.16,234.02,10.48193493]
[1732124551382,2.1332,234.12,234.02,10.48193493]
[1732124551579,2.5087,234.16,234.05,10.48193493]
[1732124552387,2.5087,234.16,234.1,2.1333]
[1732124552588,2.133,234.15,234.05,10.48193493]
[1732124552979,2.133,234.15,234.11,2.1332]
[1732124553590,2.76,234.21,234.08,10.48193493]
[1732124554487,2.1328,234.17,234.08,10.48193493]
[1732124554989,13.24193493,234.2,234.06,2.76]
[1732124555283,13.24193493,234.2,234.05,10.48193493]
[1732124556784,2.1332,234.12,234.04,10.48193493]
[1732124556979,2.76,234.2,234.02,2.76]
[1732124557180,2.76,234.2,234.07,10.48193493]
[1732124557588,2.76,234.2,234.04,10.48193493]
[1732124557789,2.1331,234.13,234.09,2.1334]
[1732124558291,2.133,234.14,234.1,2.1332]
[1732124559391,6.71909149,234.14,233.99,1.3223]
[1732124559587,6.71909149,234.14,234.05,6.71909149]
[1732124559787,2.1333,234.11,234.05,6.71909149]
[1732124559994,9.47909149,234.14,234.05,6.71909149]
[1732124560490,2.1335,234.08,234.05,2.1337]
[1732124560690,6.71909149,234.11,234.05,2.1337]
[1732124560888,2.76,234.14,234.05,6.71909149]
[1732124561192,2.1334,234.1,234.07,2.1336]
[1732124561385,2.76,234.14,234.07,6.71909149]
[1732124561789,2.1332,234.12,234.08,2.1335]
[1732124562387,2.1332,234.12,234.09,2.1334]
[1732124562783,2.1334,234.1,234.04,6.71909149]
[1732124563096,2.1334,234.1,234.07,2.1336]
[1732124563291,6.71909149,234.13,234.07,2.1336]
[1732124563587,6.71909149,234.13,234.06,6.71909149]
[1732124564092,2.1332,234.11,234.06,6.71909149]
[1732124564588,2.76,234.14,234.06,6.71909149]
[1732124565291,2.1334,234.1,234.07,2.1336]
[1732124567494,2.76,234.14,234.08,6.71909149]
[1732124569590,2.76,234.14,234.1,6.71909149]
[1732124570188,2.1331,234.13,234.08,6.71909149]
[1732124570689,2.1331,234.13,234.1,2.1333]
[1732124571393,2.76,234.14,234.08,6.71909149]
[1732124571589,2.1331,234.12,234.09,2.1334]
[1732124571895,2.76,234.14,234.08,6.71909149]
[1732124572096,2.76,234.14,234.0,2.76]
[1732124572294,2.76,234.14,234.06,6.71909149]
[1732124572597,2.1329,234.15,234.09,2.1333]
[1732124572797,2.76,234.16,234.08,6.71909149]
[1732124573301,2.76,234.16,234.09,2.1334]
[1732124574397,2.133,234.14,234.09,2.1334]
[1732124574599,2.76,234.16,234.09,2.1334]
[1732124574990,2.1331,234.13,234.1,2.1333]
[1732124577508,2.1331,234.13,234.08,6.71909149]
[1732124577509,9.47909149,234.17,234.08,6.71909149]
[1732124577709,9.47909149,234.17,234.12,2.1331]
[1732124578210,2.1329,234.15,234.1,6.71909149]
[1732124578605,2.1329,234.15,234.11,2.1332]
[1732124579106,2.76,234.17,234.11,2.1332]
[1732124579507,6.71909149,234.2,234.1,6.71909149]
[1732124579802,2.1326,234.18,234.13,6.71909149]
[1732124580203,2.74,234.21,234.13,6.71909149]
[1732124580704,2.74,234.21,234.07,2.5979]
[1732124580705,6.71909149,234.18,234.09,6.71909149]
[1732124580910,6.71909149,234.18,234.07,2.5979]
[1732124580911,6.71909149,234.14,234.01,5.94021906]
[1732124581215,6.71909149,234.14,234.08,2.1334]
[1732124581705,6.71909149,234.14,234.06,2.1336]
[1732124581903,2.1333,234.11,234.05,6.71909149]
[1732124582404,1.3032,234.23,234.1,6.71909149]
[1732124582704,8.02229149,234.23,234.15,6.71909149]
[1732124582903,2.1324,234.21,234.15,8.85189149]
[1732124583105,8.02229149,234.23,234.15,6.71909149]
[1732124583507,2.1324,234.2,234.15,6.71909149]
[1732124584709,2.1322,234.22,234.15,6.71909149]
[1732124585505,2.1323,234.21,234.17,2.1327]
[1732124585708,8.02229149,234.23,234.15,6.71909149]
[1732124586411,1.3032,234.23,234.17,6.71909149]
[1732124586708,8.02229149,234.23,234.15,6.71909149]
[1732124586902,6.71909149,234.19,234.1,6.71909149]
[1732124587305,2.1329,234.16,234.12,8.85219149]
[1732124587507,9.45909149,234.17,234.08,1.2676]
[1732124587805,6.71909149,234.15,234.06,6.71909149]
[1732124588014,2.1333,234.11,234.07,2.1336]
[1732124588203,2.1333,234.11,234.06,6.71909149]
[1732124588911,2.1333,234.11,234.02,2.134]
[1732124589113,2.1333,234.11,234.06,6.71909149]
[1732124589903,2.1333,234.11,234.08,2.1335]
[1732124590107,6.71909149,234.13,234.04,6.71909149]
[1732124590306,6.71909149,234.09,233.99,3.8286]
[1732124590510,6.71909149,234.09,234.02,6.71909149]
[1732124590708,6.71909149,234.09,234.04,6.71909149]
[1732124590709,2.1335,234.09,234.04,6.71909149]
[1732124591103,2.1335,234.09,234.04,2.1339]
[1732124591305,2.1332,234.11,234.04,6.71909149]
[1732124591504,2.74,234.14,234.08,6.71909149]
[1732124591709,9.45909149,234.15,234.09,2.1334]
[1732124591910,2.133,234.14,234.08,6.71909149]
[1732124592107,2.133,234.14,234.0,4.89802768]
[1732124592108,2.74,234.15,234.11,2.1332]
[1732124593314,2.74,234.15,234.12,2.1331]
[1732124593708,2.74,234.15,234.1,6.71909149]
[1732124593909,2.74,234.15,234.08,6.71909149]
[1732124594219,2.74,234.15,234.1,6.71909149]
[1732124594510,2.74,234.15,234.12,2.1331]
[1732124594712,2.74,234.15,234.1,6.71909149]
[1732124595109,2.74,234.15,234.1,8.85239149]
[1732124595310,2.74,234.15,234.08,6.71909149]
[1732124596218,6.71909149,234.12,233.99,3.8286]
[1732124596410,2.74,234.15,234.08,6.71909149]
[1732124596816,9.45909149,234.15,234.08,6.71909149]
[1732124597111,2.1331,234.12,234.08,8.85259149]
[1732124597313,2.1331,234.12,233.99,3.8286]
[1732124597314,2.74,234.15,234.1,6.71909149]
[1732124597717,9.45909149,234.15,234.08,8.85249149]
[1732124598015,6.71909149,234.13,234.06,6.71909149]
[1732124598210,2.1332,234.12,234.07,2.1336]
[1732124598811,2.1332,234.12,234.08,2.1335]
[1732124599120,2.1332,234.12,234.06,6.71909149]
[1732124599314,9.45909149,234.15,234.08,6.71909149]
[1732124599315,2.1331,234.13,234.08,6.71909149]
[1732124599715,2.1331,234.13,234.09,2.1334]
[1732124599918,2.1329,234.15,234.1,6.71909149]
[1732124600114,9.45909149,234.19,234.1,6.71909149]
[1732124600412,6.71909149,234.17,234.08,6.71909149]
[1732124600713,6.71909149,234.15,234.07,6.71909149]
[1732124601122,2.1329,234.15,234.09,6.71909149]
[1732124601418,2.1329,234.15,234.11,6.71909149]
[1732124601816,2.1329,234.16,234.12,2.1331]
[1732124602016,2.74,234.18,234.11,6.71909149]
[1732124602621,2.1328,234.16,234.12,2.1331]
[1732124602918,2.1328,234.16,234.11,6.71909149]
[1732124604220,2.1328,234.16,234.12,2.1331]
[1732124604625,2.1326,234.16,234.11,6.71909149]
[1732124605026,2.1326,234.16,234.12,2.1329]
[1732124605221,2.74,234.22,234.15,6.71909149]
[1732124605924,2.74,234.27,234.17,6.71909149]
[1732124606126,9.45909149,234.27,234.19,6.71909149]
[1732124606426,2.74,234.28,234.21,6.71909149]
[1732124606828,2.1317,234.26,234.21,6.71909149]
[1732124608225,2.1318,234.25,234.21,6.71909149]
[1732124608429,324.48383149,234.29,234.21,6.71909149]
[1732124608623,317.76474,234.29,234.23,6.71909149]
[1732124608827,2.1315,234.28,234.24,2.1318]
[1732124609026,317.76474,234.29,234.23,6.71909149]
[1732124609223,2.1315,234.28,234.24,2.1318]
[1732124609432,317.76474,234.29,234.23,6.71909149]
[1732124610822,2.1316,234.28,234.24,2.1319]
[1732124611027,317.76474,234.29,234.24,2.1319]
[1732124612724,317.76474,234.29,234.23,6.71909149]
[1732124612925,6.71909149,234.27,234.1,3.7402]
[1732124613121,6.71909149,234.25,234.16,6.71909149]
[1732124613728,8.85109149,234.25,234.19,2.1324]
[1732124614826,2.1321,234.24,234.19,2.1324]
[1732124616837,6.71909149,234.25,234.2,2.1324]
[1732124616838,8.85109149,234.25,234.2,2.1324]
[1732124618030,2.1321,234.24,234.19,2.1325]
[1732124618533,8.85129149,234.23,234.19,2.1325]
[1732124618728,2.74,234.26,234.19,2.1325]
[1732124618924,6.71909149,234.24,234.19,2.1325]
[1732124619327,9.45909149,234.26,234.2,2.1324]
[1732124619834,2.132,234.25,234.21,2.1323]
[1732124620136,2.74,234.26,234.22,6.71909149]
[1732124620632,2.74,234.26,234.22,8.85129149]
[1732124621036,2.74,234.26,234.22,6.71909149]
[1732124621236,319.89634,234.29,234.22,6.71909149]
[1732124621836,317.76474,234.29,234.24,6.71909149]
[1732124622342,317.76474,234.29,234.25,2.1319]
[1732124622635,317.76474,234.29,234.24,6.71909149]
[1732124622837,317.76474,234.29,234.27,2.1317]
[1732124624343,317.76474,234.29,234.24,6.71909149]
[1732124624537,317.76474,234.29,234.26,2.1319]
[1732124625339,317.76474,234.29,234.25,2.1319]
[1732124625636,317.76474,234.29,234.22,6.71909149]
[1732124626237,2.1318,234.28,234.24,2.132]
[1732124626646,6.71909149,234.25,234.06,5.94021906]
[1732124626841,6.71909149,234.21,234.14,6.71909149]
[1732124627043,6.71909149,234.23,234.14,6.71909149]
[1732124627543,6.71909149,234.21,234.08,5.4045]
[1732124627738,6.71909149,234.23,234.14,6.71909149]
[1732124628349,2.1324,234.21,234.16,2.1328]
[1732124628642,6.71909149,234.23,234.16,2.1328]
[1732124628839,6.71909149,234.23,234.18,2.1326]
[1732124629946,6.71909149,234.23,234.17,2.1327]
[1732124631046,6.71909149,234.23,234.14,6.71909149]
[1732124631247,2.1323,234.22,234.14,6.71909149]
[1732124632138,2.1323,234.22,234.18,2.1326]
[1732124632948,2.1323,234.21,234.18,2.1326]
[1732124633345,6.71909149,234.23,234.18,2.1326]
[1732124633843,9.45909149,234.23,234.14,6.71909149]
[1732124634149,9.45909149,234.23,234.19,2.1324]
[1732124634345,9.45909149,234.23,234.14,6.71909149]
[1732124634546,2.1324,234.21,234.17,2.1327]
[1732124634741,6.71909149,234.21,234.14,6.71909149]
[1732124635147,2.1325,234.19,234.16,2.1327]
[1732124635549,6.71909149,234.21,234.14,6.71909149]
[1732124635748,6.71909149,234.21,234.16,2.1328]
[1732124636252,6.71909149,234.19,234.09,6.71909149]
[1732124636748,6.71909149,234.19,234.11,6.71909149]
[1732124637150,8.85159149,234.19,234.13,2.133]
[1732124637341,8.85159149,234.19,234.11,6.71909149]
[1732124638343,2.1326,234.18,234.15,2.1328]
[1732124640246,6.71909149,234.19,234.08,2.6645]
[1732124640448,6.71909149,234.17,234.09,6.71909149]
[1732124640943,2.1328,234.16,234.09,6.71909149]
[1732124642146,2.1327,234.18,234.14,2.1329]
[1732124642352,6.71909149,234.19,234.11,6.71909149]
[1732124643251,2.1329,234.16,234.12,2.1331]
[1732124643858,2.1327,234.17,234.13,2.133]
[1732124644757,6.71909149,234.19,234.09,6.71909149]
[1732124644960,6.71909149,234.15,233.98,4.2689]
[1732124645157,9.45909149,234.15,234.06,6.71909149]
[1732124645456,6.71909149,234.13,234.08,2.1335]
[1732124646058,2.1332,234.12,234.08,2.1335]
[1732124646463,6.71909149,234.13,234.08,2.1335]
[1732124646662,2.1333,234.11,234.08,2.1335]
[1732124647055,2.1333,234.11,234.06,6.71909149]
[1732124647056,2.1333,234.1,234.07,2.1336]
[1732124647355,6.71909149,234.14,234.05,6.71909149]
[1732124647755,2.1332,234.12,234.08,2.1335]
[1732124647960,6.71909149,234.14,234.05,6.71909149]
[1732124648357,6.71909149,234.14,234.07,2.1336]
[1732124649065,6.71909149,234.14,234.05,6.71909149]
[1732124649066,6.71909149,234.1,234.05,2.1337]
[1732124649365,6.71909149,234.1,234.03,6.71909149]
[1732124649658,2.1336,234.08,234.04,2.1338]
[1732124649863,3.7983,234.14,234.07,6.71909149]
[1732124650061,6.71909149,234.19,234.12,6.71909149]
[1732124650260,2.74,234.18,234.12,6.71909149]
[1732124650765,2.74,234.18,234.13,2.1331]
[1732124651167,2.1328,234.16,234.12,8.85219149]
[1732124651358,2.74,234.18,234.12,6.71909149]
[1732124651766,3.7219,234.22,234.12,6.71909149]
[1732124651968,13.18099149,234.22,234.14,6.71909149]
[1732124652457,6.4619,234.22,234.16,6.71909149]
[1732124653065,2.1324,234.21,234.16,8.85179149]
[1732124653368,6.4619,234.22,234.16,8.85179149]
[1732124653862,3.7219,234.22,234.16,8.85179149]
[1732124654059,3.7219,234.22,234.14,8.85199149]
[1732124654060,6.71909149,234.21,234.14,8.85199149]
[1732124654265,6.71909149,234.21,234.14,2.1329]
[1732124654965,6.71909149,234.21,234.12,6.71909149]
[1732124655165,2.74,234.26,234.2,6.71909149]
[1732124655369,9.45909149,234.27,234.2,6.71909149]
[1732124655662,317.76474,234.29,234.23,2.1321]
[1732124655865,320.50474,234.29,234.22,6.71909149]
[1732124656062,320.50474,234.29,234.24,6.71909149]
[1732124656063,317.76474,234.29,234.24,6.71909149]
[1732124656965,319.89644,234.29,234.24,6.71909149]
[1732124657562,2.1318,234.28,234.22,6.71909149]
[1732124657864,317.76474,234.29,234.22,6.71909149]
[1732124658067,317.76474,234.29,234.23,2.1321]
[1732124658269,2.1318,234.28,234.23,2.1321]
[1732124658666,317.76474,234.29,234.23,2.1321]
[1732124658862,2.1318,234.27,234.23,2.1321]
[1732124659069,317.76474,234.29,234.24,8.85109149]
[1732124660365,317.76474,234.29,234.24,6.71909149]
[1732124660960,317.76474,234.29,234.26,2.1319]
[1732124661972,317.76474,234.29,234.27,2.1318]
[1732124662773,317.76474,234.29,234.28,2.1317]
[1732124662976,317.76474,234.29,234.26,6.71909149]
[1732124663373,317.76474,234.29,234.28,2.1317]
[1732124663574,317.76474,234.29,234.26,6.71909149]
[1732124663772,317.76474,234.29,234.28,2.1317]
[1732124664070,317.76474,234.29,234.28,8.85079149]
[1732124664071,312.18874,234.29,234.28,8.85079149]
[1732124664273,304.15054,234.29,234.28,2.1317]
[1732124664469,304.15054,234.29,234.28,11.59079149]
[1732124664668,253.04797753,234.29,234.28,11.59079149]
[1732124665774,253.04797753,234.29,234.28,8.85079149]
[1732124665976,253.04797753,234.29,234.28,11.59079149]
[1732124667075,253.04797753,234.29,234.28,8.85079149]
[1732124669879,251.03797753,234.29,234.28,8.85079149]
[1732124670072,199.86171506,234.29,234.28,8.85079149]
[1732124675679,148.75915259,234.29,234.28,8.85079149]
[1732124678474,97.65659012,234.29,234.28,8.85079149]
[1732124679078,97.65659012,234.29,234.28,2.1317]
[1732124682490,97.65659012,234.29,234.28,8.85079149]
[1732124682685,97.65659012,234.29,234.27,8.85089149]
[1732124682982,97.65659012,234.29,234.27,6.71909149]
[1732124683586,97.65659012,234.29,234.28,2.1317]
[1732124685384,97.65659012,234.29,234.27,6.71909149]
[1732124685589,97.65659012,234.29,234.27,8.85089149]
[1732124685990,97.65659012,234.29,234.27,6.71909149]
[1732124686282,97.65659012,234.29,234.28,2.1317]
[1732124687884,97.65659012,234.29,234.27,8.85089149]
[1732124688783,97.65659012,234.29,234.27,6.71909149]
[1732124689683,104.37568161,234.29,234.23,2.1321]
[1732124689884,104.37568161,234.29,234.21,6.71909149]
[1732124690095,6.71909149,234.27,234.19,6.71909149]
[1732124690490,1.2246,234.26,234.19,6.71909149]